bitfinex-derivatives/quotes_SOLF0:USTF0_20260211
["timestamp","ask_amount","ask_price","bid_price","bid_amount"]
[1770796842547,3.81711584,81.028,81.001,0.08983583]
[1770796843749,3.81711584,81.028,80.983,11.1205]
[1770796843948,3.81711584,81.028,80.974,0.69146437]
[1770796843949,3.81711584,81.022,80.98,3.1213022]
[1770796845247,3.81711584,81.022,80.974,11.81326437]
[1770796845445,3.81711584,81.022,80.98,3.1213022]
[1770796845851,3.81711584,81.039,80.99,3.1213022]
[1770796846145,0.0880309,81.009,80.99,3.1213022]
[1770796846343,3.81711584,81.039,80.99,3.1213022]
[1770796846543,3.81711584,81.039,81.006,0.08401298]
[1770796848744,3.81711584,81.039,80.991,11.1194]
[1770796848951,3.81711584,81.03,80.991,11.1194]
[1770796849348,3.81711584,81.029,80.982,11.1207]
[1770796850251,0.08787433,81.014,80.982,11.1207]
[1770796852051,4.06255087,81.013,80.982,11.1207]
[1770796853857,4.06255087,81.013,80.973,11.122]
[1770796854962,0.08962221,81.001,80.973,11.122]
[1770796855368,0.08962221,81.001,80.966,0.75503486]
[1770796855558,0.08962221,81.001,80.97,3.122649]
[1770796855858,4.15217308,81.001,80.97,3.122649]
[1770796856052,4.15217308,81.001,80.964,11.1232]
[1770796857265,0.08962221,81.001,80.974,11.1217]
[1770796857460,4.15217308,81.001,80.974,11.1217]
[1770796857876,4.06255087,81.001,80.963,11.1232]
[1770796858272,4.15493542,80.996,80.954,11.1245]
[1770796860165,4.15493542,80.996,80.96,3.122649]
[1770796860574,4.15493542,80.996,80.954,11.1245]
[1770796861176,4.06255087,80.989,80.943,11.126]
[1770796861474,4.06255087,80.979,80.932,0.69358079]
[1770796861670,4.06255087,80.979,80.933,11.1274]
[1770796861867,4.06255087,80.979,80.932,0.69358079]
[1770796862068,0.0921345,80.964,80.94,3.122649]
[1770796862380,0.0921345,80.964,80.941,0.69358079]
[1770796862671,4.06255087,80.999,80.95,3.122649]
[1770796863972,4.06255087,80.979,80.93,3.93153365]
[1770796864165,4.06255087,80.969,80.92,3.122649]
[1770796864967,4.06255087,80.959,80.917,0.80888465]
[1770796865369,0.08394395,80.953,80.917,0.80888465]
[1770796867075,0.08394395,80.953,80.92,3.122649]
[1770796867270,4.14649482,80.953,80.91,3.122649]
[1770796867869,4.06255087,80.953,80.9,3.122649]
[1770796868172,0.09076132,80.94,80.9,3.122649]
[1770796868374,0.09076132,80.94,80.9,3.62658958]
[1770796868669,0.09076132,80.94,80.91,3.122649]
[1770796869266,0.09076132,80.94,80.911,0.48974622]
[1770796869464,4.06255087,80.984,80.931,0.3989849]
[1770796869770,4.06255087,80.939,80.883,0.48684156]
[1770796869972,4.06255087,80.939,80.884,98.56]
[1770796870171,4.06255087,80.939,80.89,3.122649]
[1770796870372,11.1269,80.938,80.89,3.9807246]
[1770796870671,172.9847,80.985,80.884,98.56]
[1770796870672,4.06255087,80.959,80.91,3.122649]
[1770796870870,3.122649,80.95,80.9,3.122649]
[1770796871072,4.06255087,80.948,80.9,3.122649]
[1770796871778,4.06255087,80.948,80.901,98.56]
[1770796871970,0.08322672,80.932,80.901,98.56]
[1770796872170,0.08322672,80.932,80.9,3.122649]
[1770796872171,0.08322672,80.932,80.902,98.56]
[1770796872578,0.08322672,80.932,80.911,0.733006]
[1770796872778,11.1262,80.943,80.912,98.56]
[1770796874275,11.1262,80.943,80.913,98.58]
[1770796875174,172.8968,81.026,80.909,0.08366247]
[1770796875175,4.06255087,80.975,80.931,0.99295381]
[1770796875380,4.06255087,80.975,80.932,98.58]
[1770796875578,4.06255087,80.973,80.932,98.58]
[1770796876074,4.06255087,80.959,80.932,52.2696]
[1770796876383,4.06255087,80.959,80.932,10.3709]
[1770796876578,4.06255087,80.959,80.92,3.122649]
[1770796876779,4.06255087,80.959,80.933,32.2148]
[1770796877077,4.06255087,80.959,80.914,0.99295381]
[1770796877078,11.1259,80.945,80.914,0.99295381]
[1770796877277,11.1259,80.945,80.915,98.58]
[1770796877678,11.1245,80.955,80.92,3.122649]
[1770796878379,0.08377236,80.946,80.92,3.122649]
[1770796878885,0.08377236,80.946,80.921,0.96286489]
[1770796880478,11.20957236,80.946,80.921,0.96286489]
[1770796880678,11.20957236,80.946,80.92,1.389e-05]
[1770796882081,11.20957236,80.946,80.915,98.58]
[1770796882378,11.1245,80.956,80.93,4.9e-05]
[1770796882577,11.1245,80.956,80.931,48.1973]
[1770796882784,4.13704283,80.969,80.932,67.1145]
[1770796883084,4.13704283,80.969,80.933,67.7495]
[1770796883286,4.13704283,80.969,80.933,0.0001]
[1770796883484,11.1256,80.948,80.934,64.4134]
[1770796883688,11.1256,80.948,80.934,0.0001]
[1770796884792,4.13704283,80.969,80.934,0.0001]
[1770796884990,4.12490217,80.982,80.95,4.9e-05]
[1770796885289,3.122649,81.0,80.95,4.9e-05]
[1770796885290,4.12490217,80.994,80.951,98.61078361]
[1770796885990,11.1209,80.982,80.951,98.61078361]
[1770796886182,11.1209,80.982,80.964,0.07930178]
[1770796887590,4.12490217,80.994,80.964,0.07930178]
[1770796887591,11.1195,80.992,80.964,0.07930178]
[1770796887990,4.10357425,80.989,80.964,0.07930178]
[1770796892781,11.118,81.002,80.97,3.122649]
[1770796893285,11.50037176,81.056,80.965,0.09264611]
[1770796893286,4.09397092,81.029,80.98,3.122649]
[1770796893587,4.09397092,81.029,80.99,3.122649]
[1770796893782,4.09397092,81.029,80.99,4.9e-05]
[1770796893989,4.09397092,81.029,80.98,3.122649]
[1770796894489,4.09397092,81.029,80.981,98.56]
[1770796894688,11.1167,81.012,80.996,0.08213895]
[1770796895787,3.97723364,81.011,80.981,98.56]
[1770796896491,11.1169,81.01,80.98,3.122649]
[1770796896687,3.97723364,81.009,80.96,3.122649]
[1770796896893,3.97723364,81.009,80.968,98.56]
[1770796897191,3.97723364,81.003,80.98,4.9e-05]
[1770796897381,0.0809432,80.993,80.98,4.9e-05]
[1770796897588,3.97723364,81.015,80.98,4.9e-05]
[1770796897787,3.97723364,81.015,80.983,0.09022014]
[1770796898693,11.1177,81.005,80.983,0.09022014]
[1770796900788,11.1177,81.005,80.97,3.122649]
[1770796900995,11.1188,80.997,80.96,3.122649]
[1770796901684,3.97723364,80.983,80.95,3.122649]
[1770796901887,3.97723364,80.983,80.949,98.54]
[1770796902091,3.97723364,80.983,80.945,98.54]
[1770796902290,0.09324596,80.975,80.95,3.122649]
[1770796903992,0.09324596,80.975,80.94,3.122649]
[1770796904184,0.09324596,80.975,80.95,3.122649]
[1770796904787,11.1219,80.974,80.95,3.122649]
[1770796906191,0.09324596,80.975,80.95,3.122649]
[1770796906896,0.09324596,80.975,80.95,3.12428696]
[1770796908700,0.09324596,80.975,80.951,0.65430564]
[1770796908895,11.1193,80.993,80.96,3.12428696]
[1770796909203,3.97723364,81.008,80.98,3.12428696]
[1770796909397,11.1166,81.013,80.956,11.1243]
[1770796909398,11.1166,81.013,80.99,3.12428696]
[1770796909603,11.1166,81.013,80.98,3.12428696]
[1770796909995,15.09383364,81.013,80.975,99.19430564]
[1770796910195,15.09383364,81.013,80.98,3.12428696]
[1770796910402,11.1169,81.011,80.988,0.07952525]
[1770796911300,14.93791177,81.011,80.988,0.07952525]
[1770796911493,11.1172,81.008,80.988,0.07952525]
[1770796911696,11.1172,81.008,80.956,11.1243]
[1770796911697,3.82101177,81.007,80.96,3.12428696]
[1770796912797,3.73354927,81.001,80.96,3.12428696]
[1770796912993,0.07795721,80.992,80.96,3.12428696]
[1770796914403,3.81150648,80.992,80.96,3.12428696]
[1770796914608,3.81150648,80.992,80.956,98.54]
[1770796917006,0.07795721,80.992,80.96,6.93620963]
[1770796917303,11.1177,81.004,80.97,3.12428696]
[1770796917505,11.1177,81.004,80.97,6.93620963]
[1770796918796,11.1163,81.015,80.98,3.12428696]
[1770796919798,11.1149,81.025,80.99,3.12428696]
[1770796920505,3.73354927,81.009,80.96,3.12428696]
[1770796921099,14.85194927,81.0,80.96,3.12428696]
[1770796921810,3.73354927,81.019,80.97,3.12428696]
[1770796922605,3.73354927,81.019,80.986,0.08508352]
[1770796922809,11.1171,81.009,80.986,0.08508352]
[1770796923903,3.73354927,81.019,80.986,0.08508352]
[1770796923904,14.84934927,81.019,80.986,0.08508352]
[1770796924612,11.1166,81.013,80.986,0.08508352]
[1770796924813,3.73354927,81.012,80.986,0.08508352]
[1770796925001,3.73354927,80.999,80.943,3.71643971]
[1770796925204,3.73354927,80.999,80.95,3.12428696]
[1770796925708,3.73354927,80.999,80.96,3.12428696]
[1770796925709,3.73354927,80.998,80.96,3.12428696]
[1770796925912,3.73354927,80.998,80.95,3.12428696]
[1770796926314,0.09356798,80.987,80.95,3.12428696]
[1770796926515,0.09356798,80.987,80.95,6.84072667]
[1770796926711,0.09356798,80.987,80.951,3.61386841]
[1770796926914,0.09356798,80.987,80.96,3.12428696]
[1770796927216,0.09356798,80.987,80.951,3.61386841]
[1770796927409,0.09356798,80.987,80.96,3.12428696]
[1770796928010,0.09356798,80.987,80.97,3.12428696]
[1770796928210,11.1172,81.009,80.97,6.73815537]
[1770796929611,11.1182,81.001,80.981,0.0778094]
[1770796929917,11.1182,81.001,80.97,6.73815537]
[1770796930817,3.73354927,80.979,80.926,3.88106956]
[1770796931317,3.73354927,80.979,80.93,3.12428696]
[1770796931706,11.1222,80.972,80.93,3.12428696]
[1770796933019,3.73354927,80.979,80.94,3.12428696]
[1770796933218,3.73354927,80.979,80.95,3.12428696]
[1770796933514,11.1208,80.982,80.95,3.12428696]
[1770796933819,11.1208,80.982,80.956,0.09427161]
[1770796934614,11.1194,80.992,80.956,0.09427161]
[1770796935413,11.1203,80.986,80.956,0.09427161]
[1770796938133,3.73354927,80.991,80.956,0.09427161]
[1770796941324,4.05456162,80.988,80.956,0.09427161]
[1770796941527,4.05456162,80.988,80.93,12.26285261]
[1770796941729,4.05456162,80.981,80.93,12.26285261]
[1770796942024,11.1221,80.973,80.93,12.26285261]
[1770796942224,11.1221,80.973,80.93,3.89512637]
[1770796942823,0.08989727,80.96,80.93,3.89512637]
[1770796944826,11.1221,80.973,80.93,3.89512637]
[1770796945124,11.1221,80.973,80.937,0.09095403]
[1770796949022,3.7726408,80.973,80.937,0.09095403]
[1770796949827,3.7726408,80.973,80.937,3.94038457]
[1770796951028,3.7726408,80.985,80.937,3.94038457]
[1770796951424,3.7726408,80.982,80.937,3.94038457]
[1770796951730,3.7726408,80.982,80.937,3.84943054]
[1770796951937,3.7726408,80.982,80.957,0.09309781]
[1770796954130,98.56,80.994,80.957,0.09309781]
[1770796954131,102.3326408,80.994,80.957,0.09309781]
[1770796954531,3.7726408,80.993,80.957,0.09309781]
[1770796957829,3.7726408,80.993,80.96,3.12380754]
[1770796959336,3.7726408,80.993,80.957,0.09309781]
[1770796962426,3.7726408,80.989,80.957,0.09309781]
[1770796967636,11.12,80.988,80.957,0.09309781]
[1770796967838,3.7726408,80.987,80.957,0.09309781]
[1770796968430,3.7726408,80.985,80.935,3.84943054]
[1770796968630,3.7726408,80.979,80.935,3.84943054]
[1770796969739,3.7726408,80.979,80.93,3.12499929]
[1770796970130,3.7726408,80.979,80.93,7.08297862]
[1770796970329,3.88017803,80.977,80.931,3.95797933]
[1770796970733,0.08274186,80.963,80.931,3.95797933]
[1770796975447,0.08274186,80.963,80.94,3.12519731]
[1770796976841,3.88017803,80.992,80.951,3.95797933]
[1770796978242,3.88017803,80.992,80.963,0.0825867]
[1770796979440,3.88017803,81.003,80.963,4.04056603]
[1770796979937,3.88017803,81.003,80.963,3.95797933]
[1770796980340,3.88017803,81.003,80.975,0.08015423]
[1770796982239,3.88017803,81.014,80.975,0.08015423]
[1770796983443,3.88017803,81.013,80.975,0.08015423]
[1770796990848,3.88017803,81.01,80.975,0.08015423]
[1770796991049,3.88017803,80.999,80.952,3.95797933]
[1770796992548,0.09220467,80.984,80.952,3.95797933]
[1770796992757,0.09220467,80.984,80.955,3.95797933]
[1770796997552,0.09220467,80.984,80.96,3.12519731]
[1770796999254,3.88017803,80.999,80.96,7.08317664]
[1770796999452,3.88017803,80.999,80.964,0.08503771]
[1770797017676,98.52,81.006,80.939,3.91573284]
[1770797017677,3.74725456,80.989,80.939,3.91573284]
[1770797017884,3.74725456,80.979,80.94,3.12519731]
[1770797018387,3.74725456,80.979,80.94,7.04093015]
[1770797019181,0.09222688,80.968,80.94,7.04093015]
[1770797020983,3.74725456,81.017,80.959,3.91573284]
[1770797021183,175.0,81.066,80.919,22.2586]
[1770797021184,3.74725456,81.029,81.0,3.12519731]
[1770797021378,3.74725456,81.029,80.988,3.91573284]
[1770797021586,3.74725456,81.029,80.99,3.12519731]
[1770797022384,3.74725456,81.029,81.001,0.07868571]
[1770797022784,3.74725456,81.029,80.988,3.91573284]
[1770797023491,3.74725456,81.029,80.99,3.12519731]
[1770797024990,0.07990532,81.018,80.99,3.12519731]
[1770797026396,0.07990532,81.018,80.988,3.91573284]
[1770797028291,0.07990532,81.018,80.991,3.91573284]
[1770797028492,3.74725456,81.04,80.991,3.91573284]
[1770797028996,3.74725456,81.04,80.997,3.91573284]
[1770797029394,3.74725456,81.04,81.001,3.91573284]
[1770797029995,3.74725456,81.058,81.011,3.91573284]
[1770797030498,3.74725456,81.058,81.012,0.09119156]
[1770797031297,3.96114955,81.029,80.985,3.84154618]
[1770797031698,3.96114955,81.019,80.971,3.84154618]
[1770797032898,3.96114955,81.019,80.937,22.76471899]
[1770797032899,3.96114955,80.979,80.933,3.84154618]
[1770797033101,3.96114955,80.969,80.921,3.84154618]
[1770797033401,3.96114955,80.969,80.931,11.1277]
[1770797033603,3.96114955,80.969,80.921,3.84154618]
[1770797033790,3.96114955,80.969,80.924,11.1287]
[1770797034197,0.09260035,80.953,80.924,14.97024618]
[1770797034396,0.09260035,80.953,80.715,868.40510302]
[1770797034397,3.11930606,80.98,80.938,0.08042767]
[1770797034702,3.11930606,80.98,80.938,3.92197385]
[1770797034895,3.11930606,80.98,80.938,3.84154618]
[1770797035296,3.96114955,80.982,80.94,3.11930606]
[1770797035803,3.96114955,80.982,80.953,0.09229674]
[1770797036602,3.96114955,80.979,80.953,0.09229674]
[1770797040602,3.11930606,80.99,80.953,0.09229674]
[1770797040603,3.96114955,80.989,80.953,0.09229674]
[1770797040802,3.96114955,80.979,80.953,0.09229674]
[1770797041100,3.96114955,80.979,80.932,11.1275]
[1770797041504,3.96114955,80.973,80.934,14.96884618]
[1770797041807,0.08565374,80.974,80.941,3.84154618]
[1770797043409,0.08565374,80.974,80.951,3.84154618]
[1770797043611,3.96114955,80.99,80.951,3.84154618]
[1770797043811,3.11930606,81.0,80.951,3.84154618]
[1770797044008,3.96114955,81.017,80.971,3.84154618]
[1770797044414,3.96114955,81.009,80.961,3.84154618]
[1770797045117,3.96114955,81.009,80.977,0.09064698]
[1770797045312,3.96114955,81.009,80.961,3.84154618]
[1770797045520,0.08898336,80.993,80.961,3.84154618]
[1770797052022,4.05013291,80.993,80.95,3.11930606]
[1770797052223,3.96114955,80.989,80.947,3.84154618]
[1770797053124,3.96114955,80.969,80.92,6.96085224]
[1770797053325,3.96114955,80.969,80.921,3.84154618]
[1770797054128,0.0842663,80.953,80.921,3.84154618]
[1770797065241,0.0842663,80.953,80.911,11.1304]
[1770797065242,3.92846274,80.953,80.911,11.1304]
[1770797065445,3.92846274,80.953,80.878,59.84471899]
[1770797065446,3.84419644,80.949,80.898,3.95129982]
[1770797065637,3.84419644,80.939,80.898,3.95129982]
[1770797065839,3.84419644,80.929,80.886,3.95129982]
[1770797066341,0.08221858,80.916,80.886,3.95129982]
[1770797066648,3.92641502,80.916,80.87,7.07060588]
[1770797066943,3.92641502,80.916,80.867,11.1365]
[1770797066944,3.84419644,80.909,80.857,3.95129982]
[1770797067142,173.0191,80.969,80.842,3.95129982]
[1770797067143,3.11930606,80.88,80.842,3.95129982]
[1770797067336,3.11930606,80.87,80.831,3.95129982]
[1770797067737,3.84419644,80.879,80.831,3.95129982]
[1770797068343,3.84419644,80.892,80.841,3.95129982]
[1770797068846,3.84419644,80.892,80.848,3.95129982]
[1770797069748,3.11930606,80.9,80.851,3.95129982]
[1770797070050,3.84419644,80.899,80.851,3.95129982]
[1770797070244,3.84419644,80.889,80.836,3.95129982]
[1770797070750,3.84419644,80.889,80.867,0.08835035]
[1770797071247,0.09231273,80.871,80.84,7.07060588]
[1770797071447,0.09231273,80.871,80.841,3.95129982]
[1770797075149,3.84419644,80.889,80.841,3.95129982]
[1770797075551,3.84419644,80.889,80.848,0.08359693]
[1770797078551,3.84419644,80.889,80.849,3.95129982]
[1770797079052,3.84419644,80.889,80.85,3.11930606]
[1770797080648,3.84419644,80.889,80.849,3.95129982]
[1770797081852,3.84419644,80.889,80.85,3.11930606]
[1770797082051,3.84419644,80.889,80.848,0.08359693]
[1770797082245,3.84419644,80.889,80.849,3.95129982]
[1770797082957,3.84419644,80.889,80.848,0.08359693]
[1770797085562,3.84419644,80.887,80.848,0.08359693]
[1770797086557,3.84419644,80.897,80.848,4.03489675]
[1770797086859,3.84419644,80.897,80.85,3.11930606]
[1770797087160,98.64,80.903,80.851,3.95129982]
[1770797087355,98.64,80.903,80.861,3.95129982]
[1770797087551,98.64,80.903,80.865,0.08817173]
[1770797087756,102.48419644,80.903,80.865,0.08817173]
[1770797088558,3.84419644,80.902,80.865,0.08817173]
[1770797088953,3.84419644,80.914,80.866,3.95129982]
[1770797089460,3.84419644,80.914,80.87,3.11930606]
[1770797089662,3.84419644,80.927,80.881,3.95129982]
[1770797089863,3.84419644,80.927,80.882,0.09261202]
[1770797090457,3.84419644,80.927,80.882,3.83165204]
[1770797092457,327.39829554,80.967,80.882,3.83165204]
[1770797092458,3.84008655,80.919,80.882,0.09261202]
[1770797092662,3.84008655,80.909,80.882,0.09261202]
[1770797093065,3.84008655,80.909,80.861,3.73904002]
[1770797093258,3.12905256,80.9,80.861,3.73904002]
[1770797093463,6.96913911,80.9,80.861,3.73904002]
[1770797093663,3.84008655,80.899,80.861,3.73904002]
[1770797093867,0.09495971,80.889,80.861,3.73904002]
[1770797095372,0.09495971,80.889,80.85,3.13143378]
[1770797095564,3.93504626,80.889,80.84,3.13143378]
[1770797095766,3.93504626,80.889,80.84,6.8704738]
[1770797096164,3.84008655,80.889,80.84,6.8704738]
[1770797096570,0.08863299,80.873,80.84,6.8704738]
[1770797097766,0.08863299,80.873,80.841,3.73904002]
[1770797101173,0.08863299,80.873,80.85,3.13143378]
[1770797101375,0.08863299,80.873,80.85,6.8704738]
[1770797101774,98.64,80.901,80.861,3.73904002]
[1770797101973,98.64,80.901,80.853,0.08827816]
[1770797101974,6.97152033,80.9,80.853,0.08827816]
[1770797102278,3.84008655,80.889,80.849,3.73904002]
[1770797102876,3.84008655,80.879,80.825,3.73904002]
[1770797103084,3.84008655,80.879,80.83,3.13143378]
[1770797103285,3.84008655,80.879,80.831,3.73904002]
[1770797104583,0.0870386,80.863,80.831,3.73904002]
[1770797106081,3.92712515,80.863,80.814,3.73904002]
[1770797106285,3.92712515,80.863,80.821,3.73904002]
[1770797106681,3.84008655,80.863,80.821,3.73904002]
[1770797107083,0.08060737,80.85,80.821,3.73904002]
[1770797107279,3.84008655,80.875,80.835,3.73904002]
[1770797107783,3.84008655,80.875,80.841,3.73904002]
[1770797110292,3.13143378,80.88,80.841,3.73904002]
[1770797110787,98.66,80.892,80.851,3.73904002]
[1770797111286,98.66,80.892,80.852,3.81904215]
[1770797111786,102.50008655,80.892,80.852,3.81904215]
[1770797111989,3.84008655,80.891,80.852,3.81904215]
[1770797112383,3.13143378,80.89,80.852,3.81904215]
[1770797113890,3.84008655,80.904,80.861,3.73904002]
[1770797114280,3.84008655,80.899,80.861,3.73904002]
[1770797114897,3.84008655,80.899,80.872,0.09305547]
[1770797116494,3.84008655,80.889,80.84,3.13143378]
[1770797117795,0.08950587,80.873,80.84,3.13143378]
[1770797118990,0.08950587,80.873,80.842,11.14]
[1770797119194,0.08950587,80.873,80.843,3.73904002]
[1770797120687,0.08950587,80.873,80.847,4.00713651]
[1770797124194,4.09129318,80.873,80.835,3.95109178]
[1770797124399,4.09129318,80.873,80.83,7.08252556]
[1770797124592,4.09129318,80.873,80.831,3.95109178]
[1770797124991,4.00178731,80.873,80.831,3.95109178]
[1770797125398,0.09516375,80.86,80.831,3.95109178]
[1770797127000,4.00178731,80.873,80.831,3.95109178]
[1770797128401,4.00178731,80.873,80.844,0.08278212]
[1770797134198,4.00178731,80.884,80.845,3.95109178]
[1770797134596,4.00178731,80.884,80.85,3.13143378]
[1770797134898,4.00178731,80.894,80.851,3.95109178]
[1770797135099,4.00178731,80.894,80.859,0.08178034]
[1770797135305,3.13143378,80.93,80.881,3.95109178]
[1770797135604,4.00178731,80.932,80.89,3.13143378]
[1770797136200,4.00178731,80.929,80.903,0.08987894]
[1770797136598,7.13322109,80.94,80.903,0.08987894]
[1770797136801,4.00178731,80.954,80.9,3.13143378]
[1770797137005,4.00178731,80.949,80.901,3.95109178]
[1770797137207,4.00178731,80.949,80.913,0.08090429]
[1770797138307,4.00178731,80.939,80.913,0.08090429]
[1770797144103,3.13143378,80.95,80.913,4.03199607]
[1770797144312,4.00178731,80.969,80.93,7.08252556]
[1770797144514,22.2284,81.031,80.94,3.13143378]
[1770797144515,4.00178731,80.989,80.94,3.13143378]
[1770797145211,4.00178731,80.989,80.956,0.08397783]
[1770797145811,4.00178731,80.989,80.95,3.13143378]
[1770797146206,4.00178731,80.989,80.964,0.08550044]
[1770797150615,3.74974216,80.984,80.941,3.95109178]
[1770797150816,3.74974216,80.979,80.928,3.9551127]
[1770797151016,3.74974216,80.979,80.93,3.13143378]
[1770797151404,3.74974216,80.979,80.931,3.9551127]
[1770797151609,3.74974216,80.979,80.94,3.13143378]
[1770797152013,0.08975613,80.963,80.931,3.9551127]
[1770797153213,3.83949829,80.963,80.92,3.12582249]
[1770797153414,3.83949829,80.963,80.917,3.9551127]
[1770797153727,3.74974216,80.963,80.917,3.9551127]
[1770797154214,0.0899391,80.948,80.917,3.9551127]
[1770797155009,0.0899391,80.948,80.86,27.0]
[1770797155010,3.74974216,80.947,80.9,3.12582249]
[1770797156117,0.08986772,80.932,80.9,3.12582249]
[1770797156923,0.08986772,80.932,80.9,7.08093519]
[1770797157125,3.74974216,80.961,80.921,3.9551127]
[1770797157712,3.74974216,80.959,80.911,3.9551127]
[1770797158516,3.74974216,80.959,80.927,0.0860468]
[1770797160118,6.87556465,80.97,80.927,0.0860468]
[1770797160318,3.74974216,80.969,80.927,0.0860468]
[1770797161123,3.12582249,80.98,80.931,3.9551127]
[1770797161421,3.74974216,80.982,80.934,11.1273]
[1770797161625,3.74974216,80.982,80.94,7.08093519]
[1770797161825,3.74974216,80.982,80.947,0.08612223]
[1770797163019,3.74974216,80.996,80.947,4.04123493]
[1770797163626,3.74974216,80.996,80.95,3.12582249]
[1770797163820,3.74974216,80.996,80.95,7.08093519]
[1770797164122,3.74974216,80.996,80.963,0.09398821]
[1770797166325,3.74974216,81.009,80.971,3.9551127]
[1770797167026,98.58,81.024,80.98,3.12582249]
[1770797167222,3.74974216,81.023,80.982,0.08737472]
[1770797169124,3.74974216,81.019,80.982,0.08737472]
[1770797169721,3.74974216,81.019,80.98,3.12582249]
[1770797170124,3.74974216,81.029,80.992,0.09412296]
[1770797170323,3.74974216,81.059,81.01,3.12582249]
[1770797170726,3.74974216,81.049,81.001,3.9551127]
[1770797171128,3.74974216,81.039,80.991,11.1194]
[1770797171522,3.74974216,81.029,80.987,3.9551127]
[1770797171729,3.74974216,81.019,80.973,3.9551127]
[1770797171922,3.74974216,81.019,80.98,3.12582249]
[1770797172118,98.56,81.03,80.981,3.9551127]
[1770797172319,98.56,81.03,80.99,3.12582249]
[1770797172730,3.74974216,81.029,80.981,3.9551127]
[1770797173126,0.08783212,81.018,80.981,3.9551127]
[1770797173525,3.74974216,81.009,80.966,3.9551127]
[1770797174424,0.08186799,80.996,80.966,3.9551127]
[1770797175127,0.08186799,80.996,80.96,3.12582249]
[1770797175428,3.74974216,80.995,80.96,3.12582249]
[1770797175633,0.08186799,80.996,80.96,7.08093519]
[1770797175825,0.08186799,80.996,80.961,3.9551127]
[1770797177028,0.08186799,80.996,80.95,15.0802127]
[1770797177229,3.83161015,80.996,80.951,3.9551127]
[1770797177822,3.83161015,80.996,80.937,3.9551127]
[1770797178024,3.74974216,80.994,80.937,3.9551127]
[1770797178228,3.74974216,80.992,80.937,3.9551127]
[1770797178724,0.09300651,80.973,80.937,3.9551127]
[1770797179931,0.09300651,80.973,80.939,3.9551127]
[1770797180529,3.74974216,80.992,80.939,3.9551127]
[1770797180731,98.78,80.993,80.939,3.9551127]
[1770797180929,98.78,80.993,80.952,3.84065004]
[1770797181125,3.75271183,81.006,80.952,3.84065004]
[1770797181329,3.75271183,81.006,80.958,3.84065004]
[1770797182434,3.75271183,81.006,80.974,0.08997036]
[1770797184738,8.36632375,81.03,80.941,3.85561149]
[1770797184739,3.93968811,81.004,80.941,3.85561149]
[1770797185038,11.1176,81.005,80.941,3.85561149]
[1770797185039,3.93968811,80.997,80.941,3.85561149]
[1770797186038,8.36632375,81.01,80.941,3.85561149]
[1770797186039,3.93968811,80.994,80.941,3.85561149]
[1770797186238,8.36632375,81.01,80.941,3.85561149]
[1770797186239,0.08092492,80.977,80.941,3.85561149]
[1770797193840,0.08092492,80.977,80.927,3.85561149]
[1770797193841,3.93968811,80.976,80.927,3.85561149]
[1770797194843,0.08498683,80.96,80.927,3.85561149]
[1770797195751,4.02467494,80.96,80.915,3.85561149]
[1770797195950,4.02467494,80.96,80.901,3.85561149]
[1770797195951,3.93968811,80.957,80.901,3.85561149]
[1770797196146,3.93968811,80.957,80.885,3.85561149]
[1770797196448,3.93968811,80.957,80.897,3.85561149]
[1770797196840,3.93968811,80.957,80.911,3.85561149]
[1770797197252,3.93968811,80.957,80.919,0.0936266]
[1770797201255,3.93968811,80.949,80.919,0.0936266]
[1770797201550,3.93968811,80.939,80.919,0.0936266]
[1770797201757,3.93968811,80.939,80.897,3.85561149]
[1770797202047,3.12707337,80.93,80.884,3.85561149]
[1770797202252,3.93968811,80.919,80.87,3.12707337]
[1770797202451,3.93968811,80.919,80.87,6.98268486]
[1770797203053,0.08360331,80.903,80.87,6.98268486]
[1770797203250,0.08360331,80.903,80.86,3.12707337]
[1770797203446,3.12707337,80.93,80.887,3.85561149]
[1770797203657,3.93968811,80.929,80.886,0.09241663]
[1770797203847,3.12707337,80.92,80.872,3.85561149]
[1770797204047,7.06676148,80.92,80.872,3.85561149]
[1770797204954,7.06676148,80.92,80.888,0.08927821]
[1770797206557,3.12707337,80.93,80.888,0.08927821]
[1770797206760,11.39659046,80.986,80.888,0.08927821]
[1770797206761,3.12707337,80.94,80.891,3.85561149]
[1770797206958,3.93968811,80.949,80.901,3.85561149]
[1770797207662,3.93968811,80.949,80.917,0.08432055]
[1770797208351,3.93968811,80.949,80.901,14.98741149]
[1770797208352,3.93968811,80.949,80.89,11.1333]
[1770797208760,3.93968811,80.94,80.887,3.85561149]
[1770797210061,0.08206516,80.922,80.887,3.85561149]
[1770797213152,0.08206516,80.922,80.89,4.06166382]
[1770797213655,98.6,80.947,80.89,4.06166382]
[1770797214056,0.08849941,80.914,80.89,4.06166382]
[1770797214267,98.6,80.947,80.898,0.08952799]
[1770797214461,98.6,80.947,80.9,4.06166382]
[1770797214657,172.8612,81.043,80.9,4.06166382]
[1770797214658,3.98273323,80.979,80.9,4.06166382]